bitfinex/quotes_SOLUSD_20251116
["timestamp","ask_amount","ask_price","bid_price","bid_amount"]
[1763313422288,13.00856569,136.05,136.01,0.72]
[1763313422583,13.00856569,136.05,135.93,1.99999999]
[1763313422584,22.79739338,136.05,135.93,0.72]
[1763313422803,22.79739338,136.05,135.94,13.00856569]
[1763313422991,9.78882769,136.05,136.0,0.72]
[1763313423196,13.00856569,136.09,136.04,13.92856569]
[1763313423388,13.00856569,136.1,136.04,0.92]
[1763313423589,13.00856569,136.09,136.04,0.92]
[1763313423885,13.00856569,136.09,136.04,13.92856569]
[1763313424083,13.00856569,136.12,136.07,13.00856569]
[1763313424488,17.64,136.13,136.08,13.72856569]
[1763313424715,17.64,136.13,136.09,0.72]
[1763313425013,7.5047495,136.12,136.09,0.72]
[1763313425386,17.64,136.13,136.09,0.72]
[1763313425690,7.5047495,136.12,136.09,0.72]
[1763313425882,17.64,136.13,136.09,0.72]
[1763313426083,50.0,136.22,136.1,7.5047495]
[1763313426313,50.0,136.23,136.11,7.5047495]
[1763313426314,7.5047495,136.16,136.11,7.5047495]
[1763313426513,7.5047495,136.16,136.1,22.6512]
[1763313426708,7.5047495,136.15,136.09,0.72]
[1763313426915,50.0,136.17,136.09,8.2247495]
[1763313427284,7.5047495,136.14,136.09,8.2247495]
[1763313427503,7.5047495,136.14,136.09,0.72]
[1763313427698,7.5047495,136.14,136.1,0.72]
[1763313428007,9.78882769,136.17,136.13,7.5047495]
[1763313428220,9.78882769,136.17,136.13,0.72]
[1763313428512,7.5047495,136.16,136.13,0.72]
[1763313428908,9.78882769,136.17,136.13,0.72]
[1763313429088,7.5047495,136.16,136.13,0.72]
[1763313429819,7.5047495,136.15,136.1,30.8759495]
[1763313429992,7.5047495,136.15,136.1,30.1559495]
[1763313430183,7.5047495,136.15,136.11,0.72]
[1763313430388,7.5047495,136.12,136.08,0.72]
[1763313430614,59.78882769,136.15,136.06,0.72]
[1763313430800,9.78882769,136.15,136.08,7.5047495]
[1763313430998,7.5047495,136.13,136.08,7.5047495]
[1763313431235,7.5047495,136.13,136.09,7.5047495]
[1763313431410,7.5047495,136.12,136.07,22.6512]
[1763313431719,7.5047495,136.08,136.04,0.92]
[1763313431916,9.78882769,136.12,136.04,0.92]
[1763313431917,7.5047495,136.07,136.04,0.92]
[1763313432118,7.5047495,136.05,136.04,0.2]
[1763313432308,17.29357719,136.05,136.04,0.2]
[1763313432689,67.29357719,136.05,136.04,0.2]
[1763313433324,59.78882769,136.05,136.04,0.2]
[1763313433501,22.6512,136.07,136.04,0.2]
[1763313433697,17.29357719,136.06,136.04,0.2]
[1763313433995,7.5047495,136.05,136.04,0.2]
[1763313434196,7.5047495,136.05,135.85,43.99322519]
[1763313434197,50.0,136.03,135.95,0.9]
[1763313434422,7.5047495,135.99,135.95,8.4047495]
[1763313434728,50.0,136.01,135.95,0.9]
[1763313434897,9.78882769,136.0,135.95,0.9]
[1763313435101,7.5047495,135.99,135.96,0.7]
[1763313435302,9.78882769,135.98,135.95,0.2]
[1763313435507,7.5047495,135.96,135.95,0.2]
[1763313435741,59.78882769,135.99,135.95,0.2]
[1763313435901,7.5047495,135.96,135.95,0.2]
[1763313436100,59.78882769,135.99,135.95,0.2]
[1763313436323,7.5047495,135.97,135.95,0.2]
[1763313436604,9.78882769,135.99,135.95,0.2]
[1763313436809,7.5047495,135.97,135.95,0.2]
[1763313438123,9.78882769,135.98,135.95,0.2]
[1763313438124,7.5047495,135.96,135.95,0.2]
[1763313438326,17.29357719,135.96,135.95,0.2]
[1763313438511,9.78882769,135.96,135.95,0.2]
[1763313438718,17.29357719,135.96,135.95,0.2]
[1763313439124,50.0,135.94,135.86,0.7]
[1763313439307,9.78882769,135.95,135.83,0.2]
[1763313439308,30.1559495,135.89,135.83,0.2]
[1763313439506,17.29357719,135.89,135.83,0.2]
[1763313439734,7.5047495,135.89,135.83,0.2]
[1763313439921,32.44002769,135.89,135.83,0.2]
[1763313440108,59.78882769,135.88,135.83,0.2]
[1763313440306,24.79832669,135.84,135.83,0.2]
[1763313440510,59.78882769,135.84,135.83,0.2]
[1763313441009,74.79832669,135.84,135.83,0.2]
[1763313441308,9.78882769,135.84,135.83,0.2]
[1763313441509,50.0,135.86,135.83,0.9]
[1763313441510,9.78882769,135.85,135.83,0.9]
[1763313441732,7.5047495,135.84,135.83,0.2]
[1763313441912,67.29357719,135.84,135.83,0.2]
[1763313442109,22.6512,135.89,135.83,0.9]
[1763313442110,9.78882769,135.87,135.83,0.9]
[1763313442309,9.78882769,135.87,135.83,0.2]
[1763313442634,7.5047495,135.85,135.83,0.2]
[1763313442846,7.5047495,135.86,135.83,0.2]
[1763313443008,7.5047495,135.85,135.83,0.2]
[1763313443214,74.79832669,135.84,135.83,0.2]
[1763313445136,67.29357719,135.8,135.79,0.1]
[1763313445310,59.78882769,135.8,135.79,0.1]
[1763313445512,67.29357719,135.8,135.79,0.1]
[1763313445915,17.29357719,135.8,135.79,0.1]
[1763313446265,30.1559495,135.84,135.79,0.1]
[1763313446266,9.78882769,135.83,135.79,0.8]
[1763313446462,17.29357719,135.8,135.79,0.1]
[1763313446611,67.29357719,135.8,135.79,0.1]
[1763313446810,32.44002769,135.79,135.78,0.1]
[1763313447019,59.78882769,135.79,135.78,0.1]
[1763313447218,59.78882769,135.79,135.75,0.1]
[1763313447219,89.94477719,135.76,135.75,0.1]
[1763313447424,97.44952669,135.76,135.75,0.1]
[1763313447822,97.44952669,135.76,135.54,22.35725984]
[1763313447823,50.0,135.67,135.6,0.7]
[1763313448021,9.78882769,135.66,135.53,3.84974517]
[1763313448338,9.78882769,135.67,135.62,7.5047495]
[1763313448520,50.0,135.68,135.59,0.7747937]
[1763313448724,9.78882769,135.64,135.59,0.7747937]
[1763313448931,7.5047495,135.62,135.59,0.7747937]
[1763313449141,9.78882769,135.64,135.59,0.7747937]
[1763313449142,50.0,135.63,135.59,0.0747937]
[1763313449640,67.29357719,135.6,135.59,0.0747937]
[1763313449839,67.29357719,135.6,135.48,3.85075922]
[1763313449840,9.78882769,135.56,135.5,0.7]
[1763313450064,9.78882769,135.58,135.53,0.7]
[1763313450224,9.78882769,135.63,135.56,22.6512]
[1763313450423,9.78882769,135.65,135.56,22.6512]
[1763313450648,9.78882769,135.63,135.57,0.7]
[1763313450827,50.0,135.66,135.57,0.7]
[1763313451037,9.78882769,135.63,135.57,0.7]
[1763313451235,50.0,135.61,135.57,0.7]
[1763313451438,11.44625597,135.61,135.57,12.14625597]
[1763313451628,9.78882769,135.65,135.58,23.3512]
[1763313451828,9.78882769,135.63,135.59,0.7]
[1763313452033,11.44625597,135.65,135.6,11.44625597]
[1763313452231,21.23508366,135.65,135.61,12.14625597]
[1763313452441,11.44625597,135.67,135.62,12.14625597]
[1763313452645,50.0,135.73,135.66,34.09745597]
[1763313452836,44.96738031,135.89,135.7,11.44625597]
[1763313452837,50.0,135.75,135.7,11.44625597]
[1763313453045,50.0,135.75,135.6,11.44625597]
[1763313453046,50.0,135.77,135.67,23.3512]
[1763313453351,50.0,135.77,135.71,11.44625597]
[1763313453554,11.44625597,135.76,135.68,0.7]
[1763313453742,50.0,135.72,135.65,0.7]
[1763313453939,11.44625597,135.67,135.62,0.7]
[1763313454166,11.44625597,135.67,135.48,40.02456696]
[1763313454167,11.44625597,135.63,135.57,0.7]
[1763313454327,50.0,135.69,135.56,1.99999999]
[1763313454532,9.78882769,135.68,135.65,11.44625597]
[1763313454852,21.23508366,135.72,135.67,11.44625597]
[1763313455158,50.0,135.79,135.67,11.44625597]
[1763313455159,50.0,135.76,135.69,11.44625597]
[1763313455350,11.44625597,135.72,135.66,0.7]
[1763313455533,11.44625597,135.72,135.65,0.7]
[1763313455727,22.6512,135.76,135.7,11.44625597]
[1763313455728,9.78882769,135.76,135.7,11.44625597]
[1763313455932,9.78882769,135.76,135.65,0.7]
[1763313455933,11.44625597,135.74,135.69,11.44625597]
[1763313456151,11.44625597,135.72,135.68,11.44625597]
[1763313456469,11.44625597,135.71,135.63,22.6512]
[1763313456630,11.44625597,135.71,135.66,34.09745597]
[1763313456836,9.78882769,135.72,135.69,11.44625597]
[1763313457060,50.0,135.78,135.71,11.44625597]
[1763313457254,11.44625597,135.77,135.7,0.7]
[1763313457443,11.44625597,135.76,135.71,11.44625597]
[1763313457650,50.0,135.8,135.72,11.44625597]
[1763313457860,11.44625597,135.78,135.7,23.3512]
[1763313458064,11.44625597,135.77,135.71,0.7]
[1763313458259,11.44625597,135.77,135.72,11.44625597]
[1763313458449,59.78882769,135.78,135.73,11.44625597]
[1763313458657,50.0,135.81,135.76,11.44625597]
[1763313458842,11.44625597,135.77,135.71,0.7]
[1763313459038,50.0,135.76,135.69,22.6512]
[1763313459252,9.78882769,135.75,135.71,11.44625597]
[1763313459452,21.23508366,135.75,135.7,12.14625597]
[1763313459665,21.23508366,135.75,135.7,0.7]
[1763313459870,9.78882769,135.73,135.69,11.44625597]
[1763313460068,50.0,135.76,135.71,11.44625597]
[1763313460372,61.44625597,135.76,135.72,0.7]
[1763313460870,50.0,135.76,135.72,0.7]
[1763313461242,50.0,135.78,135.74,11.44625597]
[1763313461444,11.44625597,135.79,135.72,0.7]
[1763313461445,11.44625597,135.79,135.75,11.44625597]
[1763313461657,59.78882769,135.8,135.76,11.44625597]
[1763313461965,71.23508366,135.8,135.72,0.7]
[1763313462151,71.23508366,135.8,135.75,11.44625597]
[1763313462356,71.23508366,135.8,135.76,0.7]
[1763313462868,11.44625597,135.79,135.76,0.7]
[1763313463071,11.44625597,135.79,135.72,22.6512]
[1763313463368,50.0,135.8,135.75,11.44625597]
[1763313463571,50.0,135.8,135.75,0.7]
[1763313463572,11.44625597,135.79,135.75,0.7]
[1763313463756,50.0,135.8,135.72,22.6512]
[1763313463757,11.44625597,135.78,135.72,22.6512]
[1763313463962,11.44625597,135.78,135.73,11.44625597]
[1763313464157,11.44625597,135.78,135.73,12.11625597]
[1763313464470,50.0,135.78,135.72,11.44625597]
[1763313464674,11.44625597,135.75,135.67,0.67]
[1763313464850,9.78882769,135.77,135.68,11.44625597]
[1763313464851,11.44625597,135.73,135.68,11.44625597]
[1763313465055,11.44625597,135.73,135.68,12.11625597]
[1763313465256,11.44625597,135.73,135.69,0.67]
[1763313465455,11.44625597,135.73,135.69,12.11625597]
[1763313465664,11.44625597,135.72,135.66,0.67]
[1763313465873,11.44625597,135.71,135.66,0.67]
[1763313466180,1.99999999,135.77,135.66,0.67]
[1763313466181,50.0,135.74,135.7,11.44625597]
[1763313466377,61.44625597,135.74,135.69,11.44625597]
[1763313466674,11.44625597,135.73,135.69,11.44625597]
[1763313466972,50.0,135.74,135.69,12.11625597]
[1763313467168,61.44625597,135.74,135.69,12.11625597]
[1763313467369,61.44625597,135.74,135.69,11.44625597]
[1763313467674,50.0,135.78,135.73,11.44625597]
[1763313467858,21.23508366,135.79,135.73,11.44625597]
[1763313468061,21.23508366,135.79,135.74,11.44625597]
[1763313468268,21.23508366,135.79,135.69,22.6512]
[1763313468269,11.44625597,135.79,135.69,22.6512]
[1763313468452,61.44625597,135.74,135.68,0.67]
[1763313468654,50.0,135.77,135.71,11.44625597]
[1763313468870,72.6512,135.77,135.71,12.11625597]
[1763313469180,11.44625597,135.76,135.71,0.67]
[1763313469368,11.44625597,135.75,135.71,0.67]
[1763313469558,11.44625597,135.76,135.72,11.44625597]
[1763313469763,11.44625597,135.76,135.71,0.67]
[1763313470079,11.44625597,135.76,135.56,62.7025714]
[1763313470080,61.44625597,135.72,135.66,0.67]
[1763313470377,50.0,135.76,135.71,11.44625597]
[1763313470680,61.44625597,135.74,135.68,0.67]
[1763313470851,61.44625597,135.74,135.69,11.44625597]
[1763313471051,50.0,135.74,135.7,12.11625597]
[1763313471674,61.44625597,135.74,135.67,22.6512]
[1763313471875,11.44625597,135.71,135.66,12.11625597]
[1763313472171,61.44625597,135.74,135.67,0.67]
[1763313472379,50.0,135.74,135.69,11.44625597]
[1763313472699,21.23508366,135.73,135.67,0.67]
[1763313472855,17.33978391,135.71,135.64,0.67]
[1763313473170,50.0,135.7,135.64,8.22095622]
[1763313473366,57.55095622,135.7,135.65,7.55095622]
[1763313473575,57.55095622,135.7,135.64,0.67]
[1763313473771,50.0,135.72,135.66,7.55095622]
[1763313474075,50.0,135.72,135.67,0.67]
[1763313474250,72.6512,135.74,135.67,0.67]
[1763313474446,7.55095622,135.71,135.64,22.6512]
[1763313474650,7.55095622,135.71,135.66,7.55095622]
[1763313474872,7.55095622,135.71,135.67,0.67]
[1763313475376,50.0,135.72,135.67,8.22095622]
[1763313475377,57.55095622,135.72,135.67,8.22095622]
[1763313475752,7.55095622,135.72,135.67,0.67]
[1763313475952,7.55095622,135.72,135.65,22.6512]
[1763313475953,50.0,135.76,135.7,7.55095622]
[1763313476163,17.33978391,135.75,135.65,22.6512]
[1763313476372,17.33978391,135.73,135.68,8.22095622]
[1763313476693,50.0,135.74,135.69,8.22095622]
[1763313476853,57.55095622,135.74,135.69,8.22095622]
[1763313477049,57.55095622,135.74,135.69,7.55095622]
[1763313477276,57.55095622,135.74,135.69,8.22095622]
[1763313477484,57.55095622,135.72,135.67,7.55095622]
[1763313477696,9.78882769,135.73,135.68,7.55095622]
[1763313477981,22.6512,135.75,135.71,7.55095622]
[1763313478165,22.6512,135.75,135.71,8.22095622]
[1763313478363,22.6512,135.75,135.72,0.67]
[1763313478563,9.78882769,135.77,135.73,7.55095622]
[1763313479055,53.852496,135.81,135.75,7.55095622]
[1763313479253,4.82892656,135.8,135.76,0.67]
[1763313479456,4.82892656,135.8,135.77,7.55095622]
[1763313479680,4.82892656,135.8,135.76,0.67]
[1763313479879,50.0,135.81,135.76,0.67]
[1763313480178,50.0,135.81,135.77,7.55095622]
[1763313480360,57.55095622,135.84,135.79,7.55095622]
[1763313480555,4.84647938,135.83,135.8,7.55095622]
[1763313480760,50.0,135.81,135.76,0.67]
[1763313480986,7.55095622,135.8,135.74,0.67]
[1763313481282,9.78882769,135.78,135.74,7.55095622]
[1763313481658,57.55095622,135.77,135.69,0.67]
[1763313481955,9.78882769,135.74,135.71,7.55095622]
[1763313482151,50.0,135.77,135.71,7.55095622]
[1763313482460,50.0,135.77,135.67,7.55095622]
[1763313482461,17.33978391,135.72,135.67,7.55095622]
[1763313482658,9.78882769,135.72,135.67,7.55095622]
[1763313482856,39.99098391,135.7,135.65,7.55095622]
[1763313483059,39.99098391,135.7,135.53,18.64520322]
[1763313483060,80.20215622,135.67,135.62,7.55095622]
[1763313483257,80.20215622,135.67,135.6,0.67]
[1763313483258,9.78882769,135.64,135.6,7.55095622]
[1763313483461,54.85970184,135.63,135.58,8.22095622]
[1763313483674,9.78882769,135.66,135.62,7.55095622]
[1763313483850,4.86642444,135.65,135.59,0.67]
[1763313484065,12.41738066,135.64,135.59,8.22095622]
[1763313484269,4.86642444,135.63,135.62,7.55095622]
[1763313484470,4.86642444,135.65,135.62,7.55095622]
[1763313484687,4.86642444,135.64,135.62,7.55095622]
[1763313484870,4.86642444,135.65,135.62,11.84007564]
[1763313485180,4.86642444,135.64,135.63,11.84007564]
[1763313485381,4.86642444,135.65,135.59,0.67]
[1763313485575,4.86642444,135.64,135.59,0.67]
[1763313485879,4.86642444,135.64,135.62,11.84007564]
[1763313486080,4.86642444,135.65,135.62,11.84007564]
[1763313486382,4.86642444,135.65,135.63,0.67]
[1763313486687,4.86642444,135.66,135.63,11.84007564]
[1763313486889,4.86642444,135.65,135.62,11.84007564]
[1763313487079,4.86642444,135.64,135.62,11.84007564]
[1763313487267,77.51762444,135.63,135.59,11.84007564]
[1763313487599,59.78882769,135.61,135.54,0.67]
[1763313487766,4.86642444,135.6,135.57,11.84007564]
[1763313488094,4.86642444,135.59,135.57,11.84007564]
[1763313488383,4.87166363,135.6,135.58,12.51007564]
[1763313488596,4.87166363,135.61,135.59,12.51007564]
[1763313488813,6.03529312,135.64,135.58,22.6512]
[1763313488814,4.87166363,135.63,135.58,22.6512]
[1763313488998,4.87166363,135.62,135.59,0.67]
[1763313489165,4.87166363,135.65,135.61,11.84007564]
[1763313489364,4.87166363,135.64,135.59,0.67]
[1763313489591,4.87166363,135.66,135.63,22.6512]
[1763313489773,4.87166363,135.68,135.63,22.6512]
[1763313490084,4.87166363,135.69,135.64,0.67]
[1763313490394,4.87166363,135.68,135.67,11.84007564]
[1763313490692,4.87166363,135.7,135.67,11.84007564]
[1763313490990,4.87166363,135.69,135.67,11.84007564]
[1763313491175,4.87166363,135.71,135.67,11.84007564]
[1763313491372,4.87166363,135.7,135.67,11.84007564]
[1763313491590,4.87166363,135.71,135.67,11.84007564]
[1763313491895,4.87166363,135.71,135.7,11.84007564]
[1763313492066,4.88184606,135.71,135.7,11.84007564]
[1763313492265,45.38419645,135.75,135.7,11.84007564]
[1763313492266,4.88184606,135.73,135.7,12.51007564]
[1763313492595,17.72,135.75,135.72,11.84007564]
[1763313492800,17.72,135.75,135.71,0.67]
[1763313492994,6.03529312,135.79,135.74,11.84007564]
[1763313493308,4.88422353,135.79,135.72,44.28010333]
[1763313493597,54.8847188,135.82,135.77,11.84007564]
[1763313493834,50.0,135.83,135.79,11.84007564]
[1763313493980,50.0,135.85,135.8,11.84007564]
[1763313494183,4.88424981,135.84,135.8,11.84007564]
[1763313494487,61.94007564,135.87,135.79,22.6512]
[1763313494696,11.84007564,135.84,135.8,11.84007564]
[1763313494890,78.78649312,135.87,135.78,22.6512]
[1763313495137,4.88437462,135.86,135.83,11.84007564]
[1763313495562,0.1,135.87,135.85,11.84007564]
[1763313495765,0.1,135.87,135.84,11.84007564]
[1763313496204,0.1,135.87,135.86,11.84007564]
[1763313496669,0.1,135.87,135.85,22.6512]
[1763313496868,0.1,135.87,135.86,11.84007564]
[1763313497189,0.1,135.87,135.86,12.50007564]
[1763313497898,0.1,135.87,135.86,0.66]
[1763313498200,0.1,135.87,135.86,12.50007564]
[1763313498399,0.1,135.87,135.83,11.84007564]
[1763313498697,11.84007564,135.85,135.78,0.72]
[1763313498938,11.84007564,135.84,135.78,0.72]
[1763313499136,11.84007564,135.84,135.79,11.84007564]
[1763313499432,11.84007564,135.85,135.81,11.84007564]
[1763313499814,11.84007564,135.85,135.74,0.72]
[1763313499815,11.84007564,135.82,135.74,0.72]
[1763313500126,72.6512,135.83,135.74,0.72]
[1763313500127,50.0,135.81,135.74,0.72]
[1763313500332,50.0,135.81,135.72,11.84007564]
[1763313500333,11.84007564,135.77,135.72,11.84007564]
[1763313500640,11.84007564,135.77,135.62,8.19473763]
[1763313500641,11.84007564,135.73,135.66,0.72]
[1763313500802,50.0,135.76,135.7,11.84007564]
[1763313500803,11.84007564,135.75,135.7,11.84007564]
[1763313501003,50.0,135.76,135.66,0.72]
[1763313501305,11.84007564,135.75,135.7,11.84007564]
[1763313501516,11.84007564,135.76,135.71,12.56007564]
[1763313501722,11.84007564,135.77,135.72,11.84007564]
[1763313501909,11.84007564,135.77,135.69,11.84007564]
[1763313501910,50.0,135.74,135.69,11.84007564]
[1763313502121,11.84007564,135.75,135.71,11.84007564]
[1763313502310,11.84007564,135.75,135.7,11.84007564]
[1763313502663,11.84007564,135.75,135.69,0.72]
[1763313502664,11.84007564,135.73,135.69,0.72]
[1763313502806,11.84007564,135.73,135.68,11.84007564]
[1763313502807,11.84007564,135.72,135.68,11.84007564]
[1763313503136,11.84007564,135.77,135.69,0.72]
[1763313503426,11.84007564,135.75,135.69,0.72]
[1763313503627,11.84007564,135.73,135.68,34.49127564]
[1763313503831,11.84007564,135.73,135.68,11.84007564]
[1763313504038,50.0,135.74,135.68,35.21127564]
[1763313504411,32.44002769,135.77,135.65,0.72]
[1763313504412,11.84007564,135.71,135.65,0.72]
[1763313504613,9.78882769,135.73,135.65,11.84007564]
[1763313504614,11.84007564,135.69,135.65,11.84007564]
[1763313505112,11.84007564,135.71,135.67,11.84007564]
[1763313505807,58.03955258,135.76,135.7,11.84007564]
[1763313506134,11.84007564,135.75,135.7,11.84007564]
[1763313506532,9.78882769,135.78,135.67,22.6512]
[1763313506533,61.84007564,135.78,135.73,11.84007564]
[1763313506731,11.84007564,135.75,135.68,0.72]
[1763313506924,50.0,135.78,135.72,11.84007564]
[1763313507130,11.84007564,135.77,135.72,11.84007564]
[1763313507340,50.0,135.78,135.74,11.84007564]
[1763313507525,61.84007564,135.8,135.75,11.84007564]
[1763313507727,50.0,135.8,135.76,11.84007564]
[1763313507947,11.84007564,135.81,135.76,11.84007564]
[1763313508340,11.84007564,135.82,135.77,12.56007564]
[1763313508541,11.84007564,135.83,135.78,11.84007564]
[1763313508730,11.84007564,135.83,135.79,11.84007564]
[1763313509048,50.0,135.86,135.79,11.84007564]
[1763313509238,11.84007564,135.85,135.8,11.84007564]
[1763313509619,11.84007564,135.85,135.8,12.56007564]
[1763313509825,50.0,135.86,135.8,12.56007564]
[1763313510038,11.84007564,135.85,135.8,12.56007564]
[1763313510328,50.0,135.86,135.82,11.84007564]
[1763313510528,0.1,135.87,135.82,12.56007564]
[1763313510943,11.94007564,135.87,135.83,0.72]
[1763313511146,0.1,135.87,135.84,11.84007564]
[1763313511332,0.1,135.87,135.85,11.84007564]
[1763313511729,0.1,135.87,135.86,0.72]
[1763313511952,0.1,135.87,135.86,12.56007564]
[1763313513448,0.1,135.87,135.86,35.21127564]
[1763313513658,0.1,135.87,135.86,45.00010333]
[1763313513840,11.84007564,135.95,135.9,11.84007564]
[1763313514043,11.84007564,135.94,135.87,0.72]
[1763313514251,11.84007564,135.93,135.88,11.84007564]
[1763313514466,11.84007564,135.93,135.88,12.56007564]
[1763313514682,11.84007564,135.93,135.89,0.72]
[1763313514975,11.93007564,135.92,135.86,22.6512]
[1763313515136,50.0,135.91,135.85,34.49127564]
[1763313515339,11.84007564,135.9,135.85,22.6512]
[1763313515553,11.84007564,135.9,135.85,34.49127564]
[1763313515750,50.0,135.91,135.86,12.56007564]
[1763313515958,61.84007564,135.91,135.86,11.84007564]
[1763313516161,11.84007564,135.92,135.88,11.84007564]
[1763313516439,61.84007564,135.93,135.88,11.84007564]
[1763313516754,50.0,135.93,135.89,0.72]
[1763313516948,50.0,135.96,135.91,11.84007564]
[1763313517154,11.84007564,135.93,135.88,11.84007564]
[1763313517356,61.84007564,135.94,135.89,11.84007564]
[1763313517556,61.84007564,135.94,135.9,12.56007564]
[1763313517936,32.44002769,135.97,135.88,22.6512]
[1763313517937,82.44002769,135.97,135.88,22.6512]
[1763313518252,82.44002769,135.97,135.91,0.72]
[1763313518253,11.84007564,135.95,135.91,0.72]
[1763313518664,11.84007564,135.94,135.88,23.3712]
[1763313518864,11.84007564,135.94,135.89,12.56007564]
[1763313519045,11.84007564,135.95,135.9,11.84007564]
[1763313519363,50.0,135.97,135.9,11.84007564]
[1763313519669,50.0,135.97,135.88,22.6512]
[1763313519670,50.0,135.97,135.91,11.84007564]
[1763313519871,11.84007564,135.97,135.92,11.84007564]
[1763313520051,61.84007564,135.99,135.94,11.84007564]
[1763313520252,8.13955258,136.0,135.94,11.84007564]
[1763313520253,0.1,136.0,135.95,11.84007564]
[1763313520456,50.19,136.0,135.93,34.49127564]
[1763313520655,61.94007564,136.0,135.95,11.84007564]
[1763313520861,61.94007564,136.0,135.95,0.72]
[1763313521064,0.1,136.0,135.97,11.84007564]
[1763313521262,0.1,136.0,135.98,11.84007564]
[1763313521571,0.1,136.0,135.99,12.56007564]
[1763313521754,0.1,136.0,135.98,11.84007564]
[1763313521952,0.1,136.0,135.99,0.72]
[1763313522540,0.1,136.0,135.99,12.56007564]
[1763313522746,0.1,136.02,135.99,23.3712]
[1763313522960,0.1,136.02,136.01,11.84007564]
[1763313523471,0.1,136.02,136.01,12.56007564]
[1763313524371,0.1,136.02,135.99,22.6512]
[1763313524372,0.1,136.02,135.98,12.51007564]
[1763313524759,11.94007564,136.02,135.97,34.49127564]
[1763313524986,11.84007564,136.0,135.95,12.51007564]
[1763313525484,11.84007564,135.99,135.95,0.67]
[1763313525679,11.84007564,136.0,135.95,12.51007564]
[1763313525981,11.84007564,135.99,135.95,0.67]
[1763313526188,11.84007564,135.96,135.91,0.67]
[1763313526365,50.0,135.98,135.85,7.36098923]
[1763313526550,50.0,135.98,135.92,11.84007564]
[1763313526747,11.84007564,135.96,135.92,11.84007564]
[1763313526955,11.84007564,135.96,135.91,12.51007564]
[1763313527366,50.1,136.02,135.95,11.84007564]
[1763313527554,11.84007564,136.0,135.95,22.6512]
[1763313527874,11.84007564,135.99,135.95,11.84007564]
[1763313528056,11.94007564,136.02,135.98,11.84007564]
[1763313528254,11.94007564,136.02,135.98,12.51007564]
[1763313528593,0.1,136.02,135.98,12.51007564]
[1763313528960,11.84007564,136.01,135.93,22.6512]
[1763313529165,11.84007564,136.0,135.95,11.84007564]
[1763313529394,50.29,136.02,135.91,0.67]
[1763313529395,11.84007564,135.97,135.91,0.67]
[1763313529599,11.84007564,135.96,135.91,11.84007564]
[1763313529765,11.84007564,135.97,135.92,11.84007564]
[1763313530086,22.6512,135.99,135.94,11.84007564]
[1763313530292,50.0,136.0,135.96,11.84007564]
[1763313530465,61.84007564,136.0,135.95,11.84007564]
[1763313530983,61.84007564,136.0,135.95,12.51007564]
[1763313531283,11.94007564,136.02,135.97,11.84007564]
[1763313531468,11.94007564,136.02,135.97,12.51007564]
[1763313532095,11.84007564,135.98,135.9,0.67]
[1763313532392,11.84007564,135.96,135.91,34.49127564]
[1763313532898,11.84007564,135.95,135.9,12.51007564]
[1763313533064,11.84007564,135.93,135.88,11.84007564]
[1763313533394,50.0,135.95,135.81,11.84007564]
[1763313533567,11.84007564,135.93,135.88,11.84007564]
[1763313533769,11.84007564,135.93,135.87,0.67]
[1763313533770,11.84007564,135.92,135.87,0.67]
[1763313533993,50.0,135.9,135.81,0.67]
[1763313534191,11.84007564,135.88,135.84,11.84007564]
[1763313534388,11.84007564,135.89,135.84,22.6512]
[1763313534587,22.6512,135.91,135.84,22.6512]
[1763313534588,34.49127564,135.91,135.86,11.84007564]
[1763313534772,34.49127564,135.91,135.85,0.67]
[1763313534981,11.84007564,135.91,135.87,11.84007564]
[1763313535174,61.84007564,135.92,135.87,11.84007564]
[1763313535391,11.84007564,135.91,135.86,11.84007564]
[1763313535580,11.84007564,135.9,135.85,22.6512]
[1763313535899,50.0,135.92,135.86,12.51007564]
[1763313536067,11.84007564,135.91,135.86,12.51007564]
[1763313536571,11.84007564,135.92,135.87,12.51007564]
[1763313536967,72.6512,135.94,135.88,12.51007564]
[1763313537174,11.84007564,135.95,135.9,11.84007564]
[1763313537421,11.84007564,135.96,135.91,12.51007564]